bitfinex-derivatives/quotes_ETHF0:USTF0_20250929
["timestamp","ask_amount","ask_price","bid_price","bid_amount"]
[1759157792753,0.5024,4197.8,4197.6,0.5752]
[1759157793053,1.2212,4197.7,4197.6,0.9423]
[1759157793246,1.2212,4197.7,4197.6,0.3909]
[1759157793553,1.2212,4197.7,4197.6,0.7614]
[1759157793757,1.2212,4197.7,4197.6,1.3128]
[1759157793953,1.2212,4197.7,4197.6,1.74133]
[1759157795047,0.5731,4198.0,4197.9,0.7376]
[1759157795253,0.8563,4198.0,4197.9,1.289]
[1759157795451,1.2212,4198.0,4197.9,1.289]
[1759157795757,1.4404,4198.0,4197.9,0.7376]
[1759157796252,1.4404,4198.0,4197.9,0.3671]
[1759157796448,1.4404,4198.0,4197.6,0.0238]
[1759157800949,0.938,4198.0,4197.9,0.7376]
[1759157801158,0.7188,4198.0,4197.9,1.289]
[1759157801458,1.2212,4198.0,4197.9,1.289]
[1759157801957,0.3539,4198.0,4197.9,1.7175]
[1759157802157,1.44884145,4198.5,4198.4,1.289]
[1759157802359,1.9422892,4198.5,4198.4,1.289]
[1759157802555,1.9422892,4198.5,4198.4,0.7376]
[1759157802856,1.9422892,4198.5,4198.1,0.5514]
[1759157803060,1.2212,4198.2,4198.1,0.3671]
[1759157803955,1.2212,4198.2,4198.1,1.289]
[1759157804252,0.50524145,4198.5,4198.2,0.5514]
[1759157804552,1.22404145,4198.5,4198.4,1.289]
[1759157805058,1.44324145,4198.5,4198.4,1.289]
[1759157805759,1.44324145,4198.5,4198.0,0.5514]
[1759157805959,0.5024,4198.4,4197.7,0.97992]
[1759157806264,1.2212,4198.4,4198.3,0.3671]
[1759157807160,1.2212,4198.4,4198.3,1.289]
[1759157810158,0.00284145,4198.5,4198.4,1.71745]
[1759157810361,0.00284145,4198.5,4198.4,1.289]
[1759157813567,0.85914145,4198.5,4198.4,1.289]
[1759157813958,0.35674145,4198.5,4198.4,1.289]
[1759157814166,0.84804145,4198.5,4198.4,1.289]
[1759157814368,1.18374145,4198.5,4198.4,1.289]
[1759157814561,1.38924145,4198.5,4198.4,1.289]
[1759157815362,1.38924145,4198.5,4198.2,0.0238]
[1759157816457,1.38924145,4198.5,4198.4,0.3453]
[1759157816661,1.38924145,4198.5,4198.4,1.228]
[1759157816861,1.38924145,4198.5,4198.4,0.6993]
[1759157817458,1.38924145,4198.5,4198.2,0.0238]
[1759157818262,0.2055,4198.0,4197.2,1.26897053]
[1759157818571,0.847,4197.5,4197.4,1.228]
[1759157818772,0.3557,4197.5,4197.4,1.228]
[1759157818962,0.2055,4198.0,4197.4,0.6993]
[1759157819166,0.2055,4198.0,4197.3,0.42857]
[1759157819167,1.3882,4198.0,4197.9,0.3453]
[1759157819462,1.3882,4198.0,4197.9,0.6993]
[1759157819669,1.3882,4198.0,4197.9,1.228]
[1759157820460,1.3882,4198.0,4197.9,0.6993]
[1759157820663,1.1827,4198.0,4197.9,1.228]
[1759157820876,0.3557,4198.0,4197.9,1.228]
[1759157821168,0.20834145,4198.5,4198.0,0.63479]
[1759157821379,1.1827,4198.4,4198.3,1.228]
[1759157821872,0.00284145,4198.5,4198.4,1.228]
[1759157822068,1.39104145,4198.5,4198.4,1.228]
[1759157822272,1.39104145,4198.5,4198.4,0.6993]
[1759157823471,1.18554145,4198.5,4198.4,1.228]
[1759157824674,1.39104145,4198.5,4198.4,1.228]
[1759157825274,1.39104145,4198.5,4198.1,0.5287]
[1759157825476,1.39104145,4198.5,4197.7,1.94649053]
[1759157825678,0.3557,4197.9,4197.8,1.228]
[1759157825977,0.847,4197.9,4197.8,1.228]
[1759157826173,0.3557,4197.9,4197.8,1.65651]
[1759157826371,0.3557,4198.3,4198.2,1.228]
[1759157826576,0.00284145,4198.5,4198.4,1.228]
[1759157827078,0.00284145,4198.5,4198.4,1.65646]
[1759157828076,0.84984145,4198.5,4198.4,0.5287]
[1759157828282,1.39104145,4198.5,4198.4,0.874]
[1759157828475,1.39104145,4198.5,4198.4,1.228]
[1759157831173,0.4913,4198.4,4197.9,1.79767053]
[1759157831377,1.1827,4198.0,4197.9,2.49697053]
[1759157831580,0.4913,4197.9,4197.7,1.26897053]
[1759157831781,1.1827,4197.8,4197.7,0.3453]
[1759157831977,1.1827,4197.5,4197.4,1.228]
[1759157832579,0.2055,4198.0,4197.5,0.735]
[1759157832776,1.3882,4198.0,4197.9,0.3453]
[1759157834179,0.847,4198.0,4197.9,1.2287]
[1759157834381,0.3557,4198.0,4197.9,1.2287]
[1759157834982,0.8494,4198.0,4197.9,1.2287]
[1759157835286,1.3782,4198.0,4197.9,0.6564]
[1759157835482,1.3782,4198.0,4197.9,1.1858]
[1759157835883,1.3782,4198.0,4197.6,0.5294]
[1759157836082,0.8354,4197.4,4197.3,2.45477053]
[1759157836281,1.1592,4197.4,4197.3,1.1858]
[1759157836586,1.1592,4197.4,4197.3,0.3277]
[1759157838182,0.205,4197.0,4196.7,1.79837053]
[1759157838377,0.205,4197.0,4196.0,0.2063]
[1759157838378,1.1592,4196.6,4196.5,2.12607053]
[1759157838582,1.1592,4196.6,4196.5,0.3277]
[1759157839979,1.1592,4196.6,4196.1,0.5294]
[1759157840180,1.1592,4196.2,4196.1,0.3277]
[1759157840489,1.3642,4196.0,4195.9,0.3277]
[1759157841077,1.3642,4196.0,4195.8,0.00174734]
[1759157842490,1.1592,4195.4,4195.3,0.0238]
[1759157842880,1.1592,4195.4,4194.0,0.7316]
[1759157843081,0.4937,4195.3,4194.0,0.5294]
[1759157843493,0.8354,4194.1,4194.0,1.18810049]
[1759157844484,0.4914,4194.4,4194.1,0.42889]
[1759157844694,0.4914,4194.9,4194.4,0.5076]
[1759157844886,0.3429,4194.5,4194.4,1.2094]
[1759157845188,1.1815,4194.5,4194.4,1.2094]
[1759157846590,1.3776,4194.5,4194.4,0.3574]
[1759157846986,1.3776,4194.5,4194.0,0.50990049]
[1759157847186,1.3776,4194.5,4194.0,0.00230049]
[1759157848985,1.6266,4194.5,4194.0,0.00230049]
[1759157851799,10.0266,4194.5,4194.0,0.00230049]
[1759157853195,0.6901,4194.1,4194.0,0.00230049]
[1759157853396,1.1815,4194.1,4194.0,0.00230049]
[1759157854595,1.1815,4194.1,4194.0,0.35970049]
[1759157855294,1.1815,4194.1,4194.0,1.21170049]
[1759157856201,0.3429,4194.1,4194.0,1.41940049]
[1759157857095,0.3429,4194.1,4194.0,1.21170049]
[1759157857096,1.1815,4194.1,4194.0,1.21170049]
[1759157857994,1.1815,4194.9,4194.8,0.3574]
[1759157858193,1.1815,4194.9,4194.8,1.2094]
[1759157858400,1.1815,4194.9,4194.3,0.5076]
[1759157858598,1.1815,4194.9,4194.8,0.3574]
[1759157859504,1.1815,4194.9,4194.8,1.2094]
[1759157859796,0.1961,4194.5,4194.0,0.00230049]
[1759157860001,0.8343,4194.1,4194.0,1.64061049]
[1759157860202,0.6875,4194.5,4194.0,1.84831049]
[1759157860395,0.205,4195.0,4194.4,1.2094]
[1759157860597,0.205,4195.0,4194.9,1.2094]
[1759157860598,0.8951,4195.0,4194.9,1.2094]
[1759157860900,0.83729084,4195.3,4195.2,1.2094]
[1759157861497,1.18449084,4195.3,4195.2,1.2094]
[1759157862600,1.18449084,4195.3,4195.2,0.7018]
[1759157864209,1.18449084,4195.3,4195.2,0.701]
[1759157865603,1.18449084,4195.3,4195.2,0.3566]
[1759157865806,1.18449084,4195.3,4194.5,0.5076]
[1759157866003,1.1815,4194.6,4194.5,1.29386]
[1759157866304,1.1815,4194.6,4194.5,1.63826]
[1759157866699,1.1815,4194.6,4194.5,0.7018]
[1759157866900,0.3429,4194.6,4194.5,1.84596]
[1759157867509,0.8343,4194.6,4194.5,1.84596]
[1759157867811,0.8343,4194.6,4194.5,1.4171]
[1759157868107,0.8343,4194.6,4194.5,1.84596]
[1759157868708,1.0347,4194.5,4194.4,0.3574]
[1759157868909,1.3776,4194.5,4194.0,0.50990049]
[1759157869106,1.3776,4194.5,4194.0,0.00230049]
[1759157869404,1.1815,4194.1,4194.0,0.00230049]
[1759157869605,1.67328652,4194.1,4194.0,0.00230049]
[1759157870208,6.67328652,4194.1,4194.0,0.00230049]
[1759157871204,6.92228652,4194.1,4194.0,0.00230049]
[1759157871906,6.92228652,4194.1,4194.0,0.00150049]
[1759157875417,6.67328652,4194.1,4194.0,0.00150049]
[1759157875621,6.92228652,4194.1,4194.0,0.00150049]
[1759157877024,6.67328652,4194.1,4194.0,0.00150049]
[1759157877318,6.92228652,4194.1,4194.0,0.00150049]
[1759157877525,1.92228652,4194.1,4194.0,0.00150049]
[1759157879619,1.92228652,4194.1,4194.0,0.33800049]
[1759157879620,1.67328652,4194.1,4194.0,0.33800049]
[1759157879820,1.67328652,4194.1,4194.0,0.68060049]
[1759157880223,1.92228652,4194.1,4194.0,0.68060049]
[1759157880419,1.92228652,4194.1,4194.0,0.00150049]
[1759157881222,1.67328652,4194.1,4194.0,0.33800049]
[1759157881427,1.92228652,4194.1,4194.0,0.33800049]
[1759157881625,1.67328652,4194.1,4194.0,0.33800049]
[1759157881820,1.92228652,4194.1,4194.0,0.33800049]
[1759157882226,1.92228652,4194.1,4194.0,0.00150049]
[1759157883723,1.92228652,4194.1,4194.0,1.17130049]
[1759157885131,1.92228652,4194.1,4194.0,0.68060049]
[1759157885929,1.92228652,4194.1,4194.0,0.33800049]
[1759157887128,1.92228652,4194.1,4194.0,0.00150049]
[1759157890737,1.3925,4193.0,4192.9,0.02385013]
[1759157890934,0.3427,4191.8,4191.7,0.6791]
[1759157891135,1.1836,4191.8,4191.7,1.1698]
[1759157891841,1.18621545,4191.8,4191.7,1.17237122]
[1759157892426,1.18621545,4191.8,4191.7,0.68167122]
[1759157892634,1.43521545,4191.8,4191.7,0.00257122]
[1759157893127,0.3427,4190.5,4190.4,1.1698]
[1759157893333,0.834,4190.5,4190.4,1.1698]
[1759157893828,0.5529,4191.0,4190.9,0.3443]
[1759157894036,1.4005,4191.0,4190.9,1.15645413]
[1759157894238,0.2089,4191.5,4190.9,1.15645413]
[1759157894438,0.344,4191.5,4191.4,1.154]
[1759157894828,0.1897,4191.5,4190.9,0.00245413]
[1759157895140,1.1515,4191.4,4191.3,0.8334]
[1759157895537,0.344,4191.4,4191.3,1.154]
[1759157895727,0.4908,4191.6,4191.4,0.4891]
[1759157895927,0.8348,4191.5,4191.4,1.154]
[1759157896429,0.8348,4191.5,4191.0,0.1965]
[1759157896430,1.3412,4191.5,4191.0,0.4891]
[1759157898039,1.1515,4191.4,4191.3,1.154]
[1759157899341,1.1515,4191.4,4191.3,0.6649]
[1759157899545,1.1515,4191.4,4191.3,1.154]
[1759157900238,1.1515,4191.4,4191.3,0.6649]
[1759157900434,1.1515,4191.4,4191.3,0.3443]
[1759157900640,1.1515,4191.4,4190.9,0.00245413]
[1759157900835,0.1897,4191.0,4190.9,0.00245413]
[1759157901041,1.3412,4191.0,4190.9,0.00245413]
[1759157902648,0.4908,4191.4,4190.9,1.15645413]
[1759157902839,1.1515,4191.1,4191.0,0.3443]
[1759157903245,1.1515,4191.1,4191.0,0.6649]
[1759157903545,1.1515,4191.1,4191.0,1.154]
[1759157903745,0.344,4191.1,4191.0,1.154]
[1759157903943,0.344,4191.2,4191.0,0.1965]
[1759157904147,0.8129,4191.2,4191.1,1.148]
[1759157905443,1.1545,4191.2,4191.1,1.148]
[1759157905749,0.4689,4191.4,4191.2,0.4843]
[1759157905949,0.799,4191.4,4191.3,1.148]
[1759157906350,1.1406,4191.4,4191.3,1.148]
[1759157906952,1.1406,4191.4,4191.3,0.3325]
[1759157908147,1.1406,4191.4,4191.3,1.148]
[1759157908353,0.3301,4191.4,4191.3,1.148]
[1759157908547,0.4689,4191.7,4191.4,0.4843]
[1759157908852,0.00261545,4191.8,4191.7,1.148]
[1759157908853,0.33271545,4191.8,4191.7,1.148]
[1759157909056,1.14321545,4191.8,4191.7,1.148]
[1759157909752,1.14321545,4191.8,4191.7,0.6637]
[1759157910152,1.14321545,4191.8,4191.7,1.148]
[1759157910344,0.33271545,4191.8,4191.7,1.148]
[1759157912049,1.14321545,4191.8,4191.3,0.4843]
[1759157912242,1.14321545,4191.8,4191.7,1.148]
[1759157913250,1.14321545,4191.8,4191.7,0.6637]
[1759157913647,1.14321545,4191.8,4191.7,0.3325]
[1759157914055,0.867,4191.5,4191.4,0.8168]
[1759157914357,1.3359,4191.5,4190.9,0.43167413]
[1759157914548,0.3301,4191.0,4190.9,1.57967413]
[1759157914861,1.3359,4191.0,4190.9,1.15045413]
[1759157915048,1.1406,4191.0,4190.9,1.15045413]
[1759157915250,0.799,4191.6,4191.5,0.6637]
[1759157915447,0.799,4191.6,4191.5,1.148]
[1759157915651,1.1406,4191.6,4191.5,1.148]
[1759157915949,0.3301,4191.1,4191.0,1.3375]
[1759157916155,0.799,4191.2,4191.1,1.148]
[1759157916353,1.1406,4191.2,4191.1,1.148]
[1759157916853,0.4689,4191.7,4191.1,1.0929]
[1759157917155,1.1406,4191.7,4191.6,0.3325]
[1759157917447,1.1406,4191.7,4191.6,1.148]
[1759157918249,1.63406714,4191.7,4191.2,0.4843]
[1759157918449,1.1406,4191.7,4191.2,0.4843]
[1759157918652,0.6717,4191.7,4191.6,0.3325]
[1759157919051,0.00261545,4191.8,4191.4,0.3325]
[1759157919052,0.1953,4191.5,4191.4,0.3325]
[1759157919253,1.3359,4191.5,4191.4,0.3325]
[1759157919547,1.3359,4191.5,4191.4,1.148]
[1759157919857,0.799,4191.2,4191.1,1.148]
[1759157920754,1.1406,4191.2,4191.1,0.6637]
[1759157921154,0.1953,4191.0,4188.8,0.4843]
[1759157921451,0.3112,4189.7,4187.6,0.4843]
[1759157921648,0.4088,4189.0,4187.0,0.1895]
[1759157921857,0.4689,4188.4,4186.0,0.1895]
[1759157922049,0.4689,4188.2,4186.0,0.19155819]
[1759157922246,0.4689,4187.9,4186.0,0.00205819]
[1759157922459,0.4689,4187.4,4186.0,0.00205819]
[1759157922759,0.4689,4187.2,4186.1,0.0125]
[1759157923059,0.542403,4187.1,4186.1,0.0125]
[1759157923450,0.542403,4187.1,4187.0,0.1895]
[1759157923649,0.542403,4187.6,4187.0,0.6738]
[1759157923955,0.542403,4187.6,4187.5,0.6738]
[1759157924156,0.4689,4188.3,4187.6,0.4843]
[1759157924356,0.59092427,4188.2,4187.6,0.4843]
[1759157924654,0.4689,4188.3,4187.6,0.4843]
[1759157924956,0.4689,4188.3,4187.5,0.61906]
[1759157924957,0.5771866,4188.2,4187.5,0.1895]
[1759157925157,0.00274256,4188.4,4188.1,0.4295]
[1759157925458,0.57679759,4188.3,4188.2,0.4843]
[1759157925847,0.00274256,4188.4,4188.3,0.91379]
[1759157926253,0.00274256,4188.4,4188.3,5.91379]
[1759157926561,0.4689,4189.2,4188.6,0.4843]
[1759157926756,0.064,4189.9,4188.5,0.1895]
[1759157926757,0.5764689,4189.1,4189.0,0.4843]
[1759157926962,0.4689,4189.6,4189.1,0.4294]
[1759157927164,0.4689,4189.8,4189.1,0.9137]
[1759157927463,0.4689,4189.4,4189.1,0.00288325]
[1759157927650,0.1953,4189.5,4189.1,0.00288325]
[1759157927850,0.57637885,4189.4,4189.1,0.00288325]
[1759157928057,0.4689,4189.4,4189.1,0.00288325]
[1759157928357,0.1953,4189.5,4189.1,0.00288325]
[1759157928558,1.04525588,4189.4,4189.1,0.00288325]
[1759157928758,0.4689,4189.2,4189.1,0.00288325]
[1759157929063,1.04525588,4189.2,4189.1,0.00288325]
[1759157929763,1.04525588,4189.2,4189.1,0.48718325]
[1759157930169,1.04525588,4189.2,4189.1,0.00288325]
[1759157930170,0.4689,4189.2,4189.1,0.00288325]
[1759157931657,1.04502114,4189.2,4189.1,0.00288325]
[1759157932058,1.04502114,4189.2,4188.3,0.4843]
[1759157932059,6.04502114,4189.2,4188.3,0.4843]
[1759157932261,0.4689,4188.9,4188.3,0.4843]
[1759157932955,0.4689,4188.9,4188.3,0.91553955]
[1759157933862,0.4689,4188.9,4188.3,0.48605955]
[1759157934266,0.5535,4188.9,4188.3,0.48605955]
[1759157934563,0.1953,4189.0,4188.3,0.91553955]
[1759157934751,0.57588122,4188.9,4188.4,0.5627]
[1759157934956,0.7488,4189.0,4188.5,0.2272]
[1759157935158,0.5535,4188.9,4188.4,0.42947]
[1759157935359,0.5535,4188.9,4188.3,0.00175955]
[1759157935662,0.5535,4188.9,4188.3,0.43123955]
[1759157935861,0.5535,4188.9,4188.4,0.99217]
[1759157936062,0.1953,4189.0,4188.4,0.5627]
[1759157936263,0.57580308,4188.9,4188.5,0.5627]
[1759157936459,1.2254,4188.6,4188.5,0.8967]
[1759157936861,0.8672,4189.0,4188.9,0.334]
[1759157937058,1.80119342,4189.0,4188.9,0.8967]
[1759157937963,1.80119342,4189.0,4188.9,0.334]
[1759157938264,0.8997,4188.7,4188.6,0.8967]
[1759157938467,0.8997,4188.7,4188.6,1.2276]
[1759157938659,0.3462,4188.7,4188.6,1.2276]
[1759157939859,0.5535,4189.1,4188.6,1.65706]
[1759157940058,1.2254,4189.1,4189.0,1.2276]
[1759157940261,0.20267901,4190.2,4189.1,0.5627]
[1759157940262,0.258,4189.9,4189.1,0.5627]
[1759157940468,0.20267901,4190.2,4189.1,0.5627]
[1759157940469,1.12942582,4189.7,4189.1,0.5627]
[1759157940669,0.3462,4189.2,4189.1,1.2276]
[1759157940863,1.2254,4189.2,4189.1,1.2276]
[1759157942470,1.2254,4189.2,4188.4,0.5627]
[1759157942661,0.6719,4188.5,4188.4,1.32618]
[1759157942861,1.2254,4188.5,4188.4,1.65708]
[1759157943062,0.6719,4189.2,4189.1,0.6649]
[1759157943265,0.258,4189.9,4189.3,0.334]
[1759157943467,1.2254,4189.4,4189.3,0.6649]
[1759157943858,1.2254,4189.4,4189.3,0.334]
[1759157944064,1.80217637,4189.4,4189.3,0.334]
[1759157944871,0.1,5500.0,4189.7,1.2276]
[1759157944872,0.5535,4189.9,4189.7,1.2276]
[1759157945174,0.92535267,4189.8,4189.7,1.2276]
[1759157945470,1.80455267,4189.8,4189.7,1.2276]
[1759157947966,1.80455267,4189.8,4189.3,0.0238]
[1759157948271,1.2254,4189.4,4189.3,0.0238]
[1759157948572,1.80233685,4189.4,4189.3,0.0238]
[1759157950666,1.80233685,4189.4,4188.9,0.5627]
[1759157950866,1.2254,4189.0,4188.9,1.2276]
[1759157951073,0.8997,4189.6,4189.5,0.334]
[1759157951268,1.80493005,4189.6,4189.5,0.8967]
[1759157951464,1.25143005,4189.6,4189.5,1.2276]
[1759157951669,1.80493005,4189.6,4189.5,1.2276]
[1759157952568,1.80493005,4189.6,4189.5,0.334]
[1759157952569,1.2254,4189.6,4189.5,0.334]
[1759157952776,1.80059523,4189.6,4189.5,0.8967]
[1759157953670,1.80059523,4189.6,4189.5,1.2276]
[1759157953867,0.92139523,4189.6,4189.5,1.87717]
[1759157954068,0.57519523,4189.6,4189.5,1.4478]
[1759157955374,0.93849523,4189.6,4189.5,1.4478]
[1759157955777,0.93849523,4189.6,4189.5,1.87717]
[1759157956273,0.93849523,4189.6,4189.5,1.4478]
[1759157956476,1.83509523,4189.6,4189.5,1.4478]
[1759157958478,1.31219523,4189.6,4189.5,1.87717]
[1759157958678,1.31219523,4189.6,4189.5,1.4478]
[1759157958976,0.57519523,4189.6,4189.5,1.87717]
[1759157960076,0.00221582,4189.8,4189.5,1.87717]
[1759157960278,0.9307843,4189.7,4189.6,1.2339]
[1759157961373,0.9307843,4189.7,4189.4,0.42938]
[1759157961374,0.2174,4189.5,4189.1,0.0238]
[1759157961671,1.2599,4189.2,4189.1,0.9123]
[1759157961877,0.5674843,4189.2,4189.1,1.2577]
[1759157962071,0.5674843,4189.2,4189.1,1.2339]
[1759157962273,0.5674843,4189.2,4189.1,1.66331]
[1759157962872,1.26211582,4189.8,4189.7,1.2339]
[1759157963173,1.82585981,4189.8,4189.7,1.2339]
[1759157963679,1.82585981,4189.8,4189.2,0.5278]
[1759157963874,1.82364399,4189.7,4189.6,1.2339]
[1759157964377,0.56374399,4189.7,4189.6,1.66326]
[1759157964773,0.92224399,4189.7,4189.6,1.66326]
[1759157964980,0.92224399,4189.7,4189.6,1.2339]
[1759157965475,1.47224399,4189.7,4189.6,1.2339]
[1759157966079,1.84214399,4189.7,4189.6,1.2339]
[1759157966477,1.84214399,4189.7,4189.6,0.3607]
[1759157967082,1.84214399,4189.7,4189.3,0.5749]
[1759157967083,1.2784,4189.4,4189.3,0.3948]
[1759157967276,1.84214399,4189.4,4189.3,0.3948]
[1759157967478,1.84214399,4189.4,4189.3,0.9459]
[1759157967692,1.84214399,4189.4,4189.3,1.316]
[1759157968178,0.55221582,4189.8,4189.3,1.74539]
[1759157968379,0.56382236,4189.7,4189.6,0.7411]
[1759157968581,0.56382236,4189.7,4189.6,1.72156]
[1759157968784,0.00221582,4189.8,4189.6,0.7411]
[1759157968983,0.36071582,4189.8,4189.7,1.2922]
[1759157969185,0.92450587,4189.8,4189.7,1.2922]
[1759157969782,1.84440587,4189.8,4189.4,0.5511]
[1759157969977,1.4881,4189.5,4189.4,0.371]
[1759157970179,2.05189005,4189.5,4189.4,0.371]
[1759157970976,2.05189005,4189.5,4189.3,0.0238]
[1759157971182,1.84219005,4189.4,4189.3,0.0238]
[1759157971885,1.84219005,4189.4,4189.3,0.9459]
[1759157972085,1.84219005,4189.4,4189.3,1.316]
[1759157972791,1.84219005,4189.4,4189.3,0.7649]
[1759157973588,1.84219005,4189.4,4189.3,0.0238]
[1759157973790,1.84219005,4189.4,4189.3,0.9459]
[1759157974492,1.84219005,4189.4,4189.3,1.316]
[1759157975707,1.84219005,4189.4,4189.3,1.74539]
[1759157975908,1.29219005,4189.4,4189.3,1.74539]
[1759157976601,0.56379005,4189.4,4189.3,1.74539]
[1759157976797,0.36071582,4189.8,4189.7,1.2922]
[1759157977206,1.84466036,4189.8,4189.7,1.2922]
[1759157979318,1.29466036,4189.8,4189.7,1.72155]
[1759157979615,0.56626036,4189.8,4189.7,1.72155]
[1759157982119,0.00221582,4189.8,4189.7,1.72155]
[1759157984417,1.2784,4190.6,4190.5,1.2922]
[1759157984714,1.8330853,4190.6,4190.5,0.371]
[1759157984913,1.2784,4190.2,4190.1,0.371]
[1759157985108,1.8330853,4190.2,4190.1,0.371]
[1759157985309,1.8359388,4190.2,4189.8,0.98043]
[1759157985511,1.4881,4190.0,4189.9,0.80033]
[1759157985710,2.0427853,4190.0,4189.9,1.35143]
[1759157985918,2.0427853,4190.0,4189.9,1.72153]
[1759157986215,1.8330853,4190.0,4189.9,1.72153]
[1759157987010,1.8330853,4190.0,4189.9,1.2922]
[1759157987918,1.8330853,4190.0,4189.9,1.72153]
[1759157988119,1.8330853,4190.0,4189.9,1.2922]
[1759157988318,1.2784,4189.6,4189.5,1.2922]
[1759157988812,1.2784,4189.6,4189.5,1.72157]
[1759157989616,1.2784,4189.6,4189.5,1.2922]
[1759157990822,1.2784,4189.6,4189.5,1.72157]
[1759157991015,0.0028535,4190.2,4189.5,5.9522]
[1759157991322,0.0028535,4190.2,4190.1,1.72151]
[1759157993020,0.0028535,4190.2,4189.8,0.5511]
[1759157993021,1.2812535,4190.2,4189.8,0.5511]
[1759157993220,1.2812535,4190.2,4189.6,1.35146]
[1759157993221,1.2784,4189.7,4189.6,1.35146]
[1759157993418,1.2784,4189.7,4189.6,0.5511]
[1759157993618,1.2784,4189.7,4189.6,1.2922]
[1759157994323,1.2784,4189.7,4189.6,1.72156]
[1759157994720,1.2784,4189.7,4189.6,1.2922]
[1759157995122,1.2367,4189.8,4189.7,1.2175]
[1759157995825,1.2367,4189.7,4189.6,1.29046]
[1759157996026,0.3667,4189.9,4189.8,1.64683]
[1759157996218,0.8947,4189.9,4189.8,1.2175]
[1759157996527,1.2367,4189.9,4189.8,1.2175]
[1759157997125,0.0028535,4190.2,4189.8,1.64684]
[1759157997327,1.2395535,4190.2,4190.1,1.2175]
[1759157997521,1.2395535,4190.2,4189.7,0.5135]
[1759157997522,1.78651545,4190.2,4189.7,0.5135]
[1759157997713,1.2367,4189.8,4189.7,0.8699]
[1759157997920,1.2367,4189.8,4189.7,1.64685]
[1759157998119,1.2367,4189.8,4189.7,1.2175]
[1759158000421,0.5308535,4190.2,4189.7,1.2175]
[1759158000617,0.54699847,4190.1,4190.0,1.86762]
[1759158001024,0.0028535,4190.2,4190.1,0.42931]
[1759158001214,0.0028535,4190.2,4190.1,1.64681]
[1759158001415,0.54983126,4190.2,4190.1,1.64681]
[1759158002013,0.0028535,4190.2,4190.1,1.64681]
[1759158002224,0.2097,4191.5,4190.7,1.13324]
[1759158002225,0.3667,4190.8,4190.7,1.13324]
[1759158002420,0.8947,4191.1,4191.0,1.13321]
[1759158002720,1.78359891,4191.1,4190.6,0.5135]
[1759158002928,0.3667,4190.9,4190.8,1.64674]
[1759158003230,1.2367,4191.6,4191.5,0.8699]
[1759158003528,1.2367,4190.7,4190.6,1.2175]
[1759158003820,0.8947,4190.0,4189.9,0.704]
[1759158004223,1.1087,4190.0,4189.9,0.704]
[1759158004524,1.45293796,4190.0,4189.9,0.70597431]
[1759158004722,0.00223796,4190.0,4189.9,1.13530431]
[1759158005321,0.00223796,4190.0,4189.9,0.70597431]
[1759158005322,1.45293796,4190.0,4189.9,0.70597431]
[1759158006030,0.53023796,4190.0,4189.9,1.21947431]
[1759158006224,0.00223796,4190.0,4189.9,1.21947431]
[1759158006626,0.53023796,4190.0,4189.9,1.21947431]
[1759158006929,0.00223796,4190.0,4189.9,1.21947431]
[1759158007824,1.1087,4191.0,4190.9,1.2175]
[1759158008029,1.98548554,4191.0,4190.9,0.3564]
[1759158008420,1.98548554,4191.0,4190.9,0.704]
[1759158008629,1.98739145,4191.0,4190.9,0.704]
[1759158010124,1.98739145,4191.0,4190.9,0.3564]
[1759158011133,1.64539145,4191.0,4190.9,1.2175]
[1759158011333,1.45260591,4191.0,4190.9,0.704]
[1759158012030,1.98932865,4191.0,4190.9,0.3564]
[1759158013830,1.45260591,4191.0,4190.9,1.2184]
[1759158014132,1.45260591,4191.0,4189.7,1.70801996]
[1759158014133,0.5487,4190.9,4189.9,0.43130431]
[1759158014431,1.4567,4190.0,4189.9,0.35557431]
[1759158015224,1.4567,4190.0,4189.9,0.72327431]
[1759158016033,1.4567,4190.0,4189.9,1.15260431]
[1759158016237,1.4567,4190.0,4189.9,0.72327431]
[1759158016438,1.4567,4190.0,4189.9,0.00197431]
[1759158016933,0.5544,4190.5,4190.4,0.42928]
[1759158017125,1.1031,4190.5,4190.4,1.2357]
[1759158017324,1.4567,4190.5,4190.4,0.7213]
[1759158017536,1.4567,4190.5,4190.4,0.3536]
[1759158018134,1.4567,4190.5,4190.4,1.15058]
[1759158018633,1.4567,4190.5,4190.4,0.7213]
[1759158018930,0.5544,4190.0,4189.9,0.72327431]
[1759158019134,1.4567,4190.0,4189.9,0.72327431]
[1759158019335,1.4567,4190.0,4189.9,1.15260431]
[1759158019736,1.4567,4190.0,4189.9,0.72327431]
[1759158020135,1.4567,4190.0,4189.9,1.15260431]
[1759158020333,0.8922,4190.4,4190.3,0.7213]
[1759158020630,0.2109,4190.0,4189.9,0.00197431]
[1759158020835,0.2109,4190.0,4189.9,0.35557431]
[1759158020836,1.4567,4190.0,4189.9,0.35557431]
[1759158021540,1.4567,4190.0,4189.9,1.15260431]
[1759158021728,1.4567,4190.0,4189.9,0.72327431]
[1759158022129,1.4567,4190.0,4189.9,0.00197431]
[1759158022529,1.4567,4190.0,4189.9,0.72327431]
[1759158022934,1.4567,4190.0,4189.9,0.35557431]
[1759158023136,1.4567,4190.0,4189.9,0.00197431]
[1759158024234,1.993619,4190.0,4189.9,0.00197431]
[1759158026332,1.4567,4190.0,4189.9,0.72147431]
[1759158026837,1.4567,4190.0,4189.9,0.00197431]
[1759158027835,1.4567,4190.0,4189.9,0.36797431]
[1759158028435,1.99359566,4190.0,4189.9,0.00197431]
[1759158030845,1.4567,4190.0,4189.9,0.72147431]
[1759158031342,1.4567,4190.0,4189.9,0.00197431]
[1759158031735,1.99357006,4190.0,4189.9,0.00197431]
[1759158033534,1.4567,4190.0,4189.9,0.36797431]
[1759158033939,1.4567,4190.0,4189.9,0.00197431]
[1759158034335,1.99361702,4190.0,4189.9,0.00197431]
[1759158036149,1.4567,4190.0,4189.9,0.00197431]